fUST/lending_fUST_20241227
["ID","MTS","AMOUNT","RATE_DAILY","PERIOD"]
[346727124,1735249846611,-500.0,0.00016936,2]
[346727125,1735249846620,-500.0,0.00016936,2]
[346727126,1735249846630,-500.0,0.00016936,2]
[346727127,1735249846639,-500.0,0.00016936,2]
[346727128,1735249846648,-500.0,0.00016936,2]
[346727129,1735249846657,-500.0,0.00016936,2]
[346727130,1735249846667,-500.0,0.00016936,2]
[346727131,1735249846678,-500.0,0.00016936,2]
[346727132,1735249846688,-500.0,0.00016936,2]
[346727133,1735249846697,-500.0,0.00016936,2]
[346727134,1735249846706,-617.9,0.00016936,2]
[346727135,1735249846716,-500.0,0.00016936,2]
[346727136,1735249846725,-500.0,0.00016936,2]
[346727137,1735249846734,-1682.95,0.00016936,2]
[346727138,1735249846744,-545.00097887,0.00016936,2]
[346727139,1735249846754,-500.0,0.00016936,2]
[346727140,1735249846763,-232.32,0.00016936,2]
[346727141,1735249846773,-500.0,0.00016936,2]
[346727142,1735249846782,-500.0,0.00016936,2]
[346727143,1735249846791,-500.0,0.00016936,2]
[346727144,1735249846801,-1098.15,0.00016936,2]
[346727145,1735249846810,-1692.65,0.00016936,2]
[346727146,1735249846818,-937.86,0.00016936,2]
[346727147,1735249846828,-751.71,0.00016936,2]
[346727148,1735249846837,-500.0,0.00016936,2]
[346727149,1735249846846,-500.0,0.00016936,2]
[346727150,1735249846855,-500.0,0.00016936,2]
[346727151,1735249846865,-500.0,0.00016936,2]
[346727152,1735249846874,-500.0,0.00016936,2]
[346727153,1735249846883,-500.0,0.00016936,2]
[346727154,1735249846893,-500.0,0.00016936,2]
[346727155,1735249846903,-500.0,0.00016936,2]
[346727156,1735249846912,-500.0,0.00016936,2]
[346727157,1735249846922,-677.71,0.00016936,2]
[346727158,1735249846931,-500.0,0.00016936,2]
[346727159,1735249846941,-500.0,0.00016936,2]
[346727160,1735249846950,-500.0,0.00016937,2]
[346727161,1735249846960,-500.0,0.00016937,2]
[346727162,1735249846969,-500.0,0.00016937,2]
[346727163,1735249846978,-500.0,0.00016937,2]
[346727164,1735249846987,-500.0,0.00016937,2]
[346727165,1735249846997,-504.60957961,0.00016937,2]
[346727166,1735249847006,-500.0,0.00016937,2]
[346727167,1735249847017,-500.0,0.00016937,2]
[346727168,1735249847027,-500.0,0.00016937,2]
[346727169,1735249847038,-500.0,0.00016937,2]
[346727170,1735249847047,-500.0,0.00016937,2]
[346727171,1735249847057,-500.0,0.00016937,2]
[346727172,1735249847066,-500.0,0.00016937,2]
[346727173,1735249847076,-500.0,0.00016937,2]
[346727174,1735249847086,-500.0,0.00016937,2]
[346727175,1735249847095,-500.0,0.00016937,2]
[346727176,1735249847104,-500.0,0.00016937,2]
[346727177,1735249847113,-500.0,0.00016937,2]
[346727178,1735249847123,-500.0,0.00016937,2]
[346727179,1735249847132,-500.0,0.00016937,2]
[346727180,1735249847143,-500.0,0.00016937,2]
[346727181,1735249847154,-500.0,0.00016937,2]
[346727182,1735249847163,-500.0,0.00016937,2]
[346727183,1735249847173,-500.0,0.00016937,2]
[346727184,1735249847182,-500.0,0.00016937,2]
[346727185,1735249847191,-648.55,0.00016937,2]
[346727186,1735249847201,-500.0,0.00016937,2]
[346727187,1735249847211,-500.0,0.00016938,2]
[346727188,1735249847221,-5620.77,0.00016938,2]
[346727189,1735249847231,-500.0,0.00016938,2]
[346727190,1735249847241,-1968.42,0.00016938,2]
[346727191,1735249847251,-558.78,0.00016938,2]
[346727192,1735249847260,-500.0,0.00016938,2]
[346727193,1735249847270,-500.0,0.00016938,2]
[346727194,1735249847280,-500.0,0.00016939,2]
[346727195,1735249847289,-1456.39,0.00016939,2]
[346727196,1735249847298,-500.0,0.00016939,2]
[346727197,1735249847308,-500.0,0.00016939,2]
[346727198,1735249847317,-500.0,0.0001694,2]
[346727199,1735249847327,-500.0,0.0001694,2]
[346727200,1735249847337,-500.0,0.0001694,2]
[346727201,1735249847346,-500.0,0.0001694,2]
[346727202,1735249847356,-2083.88,0.0001694,2]
[346727203,1735249847365,-500.0,0.0001694,2]
[346727204,1735249847375,-1007.75,0.0001694,2]
[346727205,1735249847385,-152.34657847,0.0001694,2]
[346727206,1735249847395,-500.0,0.0001694,2]
[346727207,1735249847404,-500.0,0.0001694,2]
[346727208,1735249847414,-500.0,0.0001694,2]
[346727209,1735249847426,-500.0,0.0001694,2]
[346727210,1735249847437,-500.0,0.0001694,2]
[346727211,1735249847447,-500.0,0.0001694,2]
[346727212,1735249847456,-500.0,0.0001694,2]
[346727213,1735249847467,-500.0,0.0001694,2]
[346727214,1735249847478,-500.0,0.0001694,2]
[346727215,1735249847488,-361.33712646,0.0001694,2]
[346727216,1735249847498,-516.13,0.0001694,2]
[346727217,1735249847508,-500.0,0.0001694,2]
[346727218,1735249847518,-569.39,0.0001694,2]
[346727219,1735249847527,-500.0,0.00016973,2]
[346727220,1735249847537,-732.55294881,0.00017021,2]
[346727221,1735249847546,-500.0,0.00017032,2]
[346727222,1735249847556,-533.08,0.00017032,2]
[346727223,1735249847567,-521.44603836,0.00017032,2]
[346727224,1735249847576,-500.0,0.00017032,2]
[346727225,1735249847585,-500.0,0.00017032,2]
[346727226,1735249847595,-500.0,0.00017032,2]
[346727227,1735249847605,-500.0,0.00017032,2]
[346727228,1735249847614,-500.0,0.00017032,2]
[346727229,1735249847624,-500.0,0.00017032,2]
[346727230,1735249847634,-500.0,0.00017032,2]
[346727231,1735249847644,-500.0,0.00017032,2]
[346727232,1735249847653,-500.0,0.00017034,2]
[346727233,1735249847663,-500.0,0.00017034,2]
[346727234,1735249847673,-500.0,0.00017034,2]
[346727235,1735249847682,-500.0,0.00017036,2]
[346727236,1735249847691,-500.0,0.00017036,2]
[346727237,1735249847701,-1732.67,0.00017036,2]
[346727238,1735249847710,-500.0,0.00017036,2]
[346727239,1735249847719,-513.42,0.00017036,2]
[346727240,1735249847729,-13695.59,0.00017036,2]
[346727241,1735249847737,-9731.3,0.0001704,2]
[346727242,1735249847747,-248.6756801,0.0001706,2]
[346727243,1735249847756,-153.2995019,0.00017068,2]
[346727244,1735249847765,-2000.0,0.000172,2]
[346727245,1735249847775,-732.55294881,0.00017202,2]
[346727246,1735249847784,-539.18,0.00017206,2]
[346727247,1735249847793,-500.0,0.00017206,2]
[346727248,1735249847803,-3581.54,0.00017206,2]
[346727249,1735249847812,-661.37,0.00017206,2]
[346727250,1735249847822,-203.04848889,0.00017206,2]
[346727251,1735249847831,-500.0,0.00017206,2]
[346727252,1735249847840,-1426.63,0.00017206,2]
[346727253,1735249847849,-500.0,0.00017207,2]
[346727254,1735249847858,-500.0,0.00017207,2]
[346727255,1735249847867,-500.0,0.00017207,2]
[346727256,1735249847877,-500.0,0.00017207,2]
[346727257,1735249847887,-500.0,0.00017207,2]
[346727258,1735249847896,-500.0,0.00017207,2]
[346727259,1735249847906,-649.71,0.00017207,2]
[346727260,1735249847916,-500.0,0.00017207,2]
[346727261,1735249847925,-500.0,0.00017207,2]
[346727262,1735249847935,-500.0,0.00017207,2]
[346727263,1735249847945,-500.0,0.00017207,2]
[346727264,1735249847955,-13862.09,0.00017207,2]
[346727265,1735249847964,-500.0,0.00017207,2]
[346727266,1735249847974,-500.0,0.00017207,2]
[346727267,1735249847984,-6001.0,0.00017207,2]
[346727268,1735249847993,-500.0,0.00017207,2]
[346727269,1735249848003,-500.0,0.00017207,2]
[346727270,1735249848014,-500.0,0.00017207,2]
[346727271,1735249848024,-386.74913043,0.00017207,2]
[346727272,1735249848033,-500.0,0.00017207,2]
[346727273,1735249848043,-889.71,0.00017208,2]
[346727274,1735249848052,-500.0,0.00017208,2]
[346727275,1735249848134,-500.0,0.00017208,2]
[346727276,1735249848147,-500.0,0.00017208,2]
[346727277,1735249848158,-500.0,0.00017208,2]
[346727278,1735249848167,-500.0,0.00017208,2]
[346727279,1735249848177,-1032.39,0.00017208,2]
[346727280,1735249848187,-500.0,0.00017208,2]
[346727281,1735249848196,-500.0,0.00017208,2]
[346727282,1735249848206,-1271.83,0.00017208,2]
[346727283,1735249848216,-168.0,0.00017208,2]
[346727284,1735249848225,-500.0,0.00017208,2]
[346727285,1735249848235,-1351.38,0.00017208,2]
[346727286,1735249848244,-506.22,0.00017208,2]
[346727287,1735249848254,-691.96,0.00017208,2]
[346727288,1735249848263,-2428.17,0.00017208,2]
[346727289,1735249848273,-500.0,0.00017208,2]
[346727290,1735249848282,-1242.11,0.00017208,2]
[346727291,1735249848292,-500.0,0.00017208,2]
[346727292,1735249848301,-500.0,0.00017208,2]
[346727293,1735249848311,-584.02,0.00017208,2]
[346727294,1735249848320,-1437.84,0.00017208,2]
[346727295,1735249848330,-500.0,0.00017208,2]
[346727296,1735249848339,-500.0,0.00017208,2]
[346727297,1735249848348,-500.0,0.00017208,2]
[346727298,1735249848358,-500.0,0.00017208,2]
[346727299,1735249848368,-620.65,0.00017208,2]
[346727300,1735249848377,-2166.84,0.00017208,2]
[346727301,1735249848387,-3631.34,0.00017208,2]
[346727302,1735249848398,-514.77,0.00017208,2]
[346727303,1735249848408,-500.0,0.00017208,2]
[346727304,1735249848418,-500.0,0.00017208,2]
[346727305,1735249848433,-500.0,0.00017208,2]
[346727306,1735249848443,-500.0,0.00017208,2]
[346727307,1735249848452,-500.0,0.00017208,2]
[346727308,1735249848462,-500.0,0.00017208,2]
[346727309,1735249848473,-2000.37,0.00017208,2]
[346727310,1735249848482,-894.56,0.00017208,2]
[346727311,1735249848492,-2060.01,0.00017208,2]
[346727312,1735249848502,-1311.7,0.00017208,2]
[346727313,1735249848512,-1383.78,0.00017208,2]
[346727314,1735249848521,-1995.74,0.00017208,2]
[346727315,1735249848531,-1699.51,0.00017208,2]
[346727316,1735249848540,-500.0,0.00017208,2]
[346727317,1735249848551,-500.0,0.00017208,2]
[346727318,1735249848561,-500.0,0.00017208,2]
[346727319,1735249848570,-500.0,0.00017208,2]
[346727320,1735249848580,-1075.65,0.00017208,2]
[346727321,1735249848589,-500.0,0.00017208,2]
[346727322,1735249848600,-500.0,0.00017208,2]
[346727323,1735249848610,-500.0,0.00017208,2]
[346727324,1735249848620,-500.0,0.00017209,2]
[346727325,1735249848630,-1124.09,0.00017209,2]
[346727326,1735249848639,-1559.98,0.00017209,2]
[346727327,1735249848649,-500.0,0.00017209,2]
[346727328,1735249848658,-915.83,0.00017209,2]
[346727329,1735249848668,-560.27,0.00017209,2]
[346727330,1735249848678,-500.0,0.00017209,2]
[346727331,1735249848687,-500.0,0.00017209,2]
[346727332,1735249848696,-46428.12,0.00017209,2]
[346727333,1735249848707,-1006.48,0.00017209,2]
[346727334,1735249848716,-500.0,0.00017209,2]
[346727335,1735249848725,-500.0,0.0001721,2]
[346727336,1735249848734,-523.1,0.0001721,2]
[346727337,1735249848744,-500.0,0.0001721,2]
[346727338,1735249848753,-500.0,0.0001721,2]
[346727339,1735249848763,-500.0,0.0001721,2]
[346727340,1735249848772,-500.0,0.0001721,2]
[346727341,1735249848782,-500.0,0.0001721,2]
[346727342,1735249848792,-500.0,0.0001721,2]
[346727343,1735249848802,-500.0,0.0001721,2]
[346727344,1735249848811,-850.71,0.0001721,2]
[346727345,1735249848821,-500.0,0.0001721,2]
[346727346,1735249848830,-500.0,0.0001721,2]
[346727347,1735249848839,-500.0,0.0001721,2]
[346727348,1735249848849,-500.0,0.0001721,2]
[346727349,1735249848858,-500.0,0.0001721,2]
[346727350,1735249848868,-500.0,0.0001721,2]
[346727351,1735249848877,-500.0,0.0001721,2]
[346727352,1735249848887,-500.0,0.0001721,2]
[346727353,1735249848896,-500.0,0.0001721,2]
[346727354,1735249848906,-500.0,0.0001721,2]
[346727355,1735249848915,-500.0,0.0001721,2]
[346727356,1735249848924,-500.0,0.0001721,2]
[346727357,1735249848934,-500.0,0.0001721,2]
[346727358,1735249848944,-500.0,0.0001721,2]
[346727359,1735249848953,-500.0,0.0001721,2]
[346727360,1735249848962,-500.0,0.0001721,2]
[346727361,1735249848972,-617.9,0.0001721,2]
[346727362,1735249848981,-500.0,0.0001721,2]
[346727363,1735249848990,-500.0,0.0001721,2]
[346727364,1735249848999,-1682.95,0.0001721,2]
[346727365,1735249849008,-500.0,0.0001721,2]
[346727366,1735249849018,-500.0,0.0001721,2]
[346727367,1735249849027,-500.0,0.0001721,2]
[346727368,1735249849036,-500.0,0.0001721,2]
[346727369,1735249849045,-1098.15,0.0001721,2]
[346727370,1735249849055,-1692.65,0.0001721,2]
[346727371,1735249849064,-937.86,0.0001721,2]
[346727372,1735249849073,-751.71,0.0001721,2]
[346727373,1735249849084,-500.0,0.0001721,2]
[346727374,1735249849093,-500.0,0.0001721,2]
[346727375,1735249849102,-500.0,0.0001721,2]
[346727376,1735249849112,-500.0,0.0001721,2]
[346727377,1735249849121,-500.0,0.0001721,2]
[346727378,1735249849130,-500.0,0.0001721,2]
[346727379,1735249849139,-500.0,0.0001721,2]
[346727380,1735249849148,-500.0,0.0001721,2]
[346727381,1735249849157,-677.71,0.0001721,2]
[346727382,1735249849166,-500.0,0.0001721,2]
[346727383,1735249849175,-500.0,0.0001721,2]
[346727384,1735249849185,-500.0,0.00017211,2]
[346727385,1735249849195,-500.0,0.00017211,2]
[346727386,1735249849204,-500.0,0.00017211,2]
[346727387,1735249849213,-500.0,0.00017211,2]
[346727388,1735249849223,-500.0,0.00017211,2]
[346727389,1735249849232,-500.0,0.00017211,2]
[346727390,1735249849241,-500.0,0.00017211,2]
[346727391,1735249849251,-507.61607644,0.00017211,2]
[346727392,1735249849261,-500.0,0.00017211,2]
[346727393,1735249849269,-500.0,0.00017211,2]
[346727394,1735249849279,-500.0,0.00017211,2]
[346727395,1735249849288,-500.0,0.00017211,2]
[346727396,1735249849298,-500.0,0.00017211,2]
[346727397,1735249849307,-500.0,0.00017211,2]
[346727398,1735249849317,-500.0,0.00017211,2]
[346727399,1735249849327,-500.0,0.00017211,2]
[346727400,1735249849337,-500.0,0.00017211,2]
[346727401,1735249849346,-500.0,0.00017211,2]
[346727402,1735249849356,-500.0,0.00017211,2]
[346727403,1735249849366,-500.0,0.00017211,2]
[346727404,1735249849375,-399.51969541,0.00017211,2]
[346727405,1735249849385,-500.0,0.00017211,2]
[346727406,1735249849395,-500.0,0.00017211,2]
[346727407,1735249849404,-115.28718328,0.00017211,2]
[346727408,1735249849424,-533.26281672,0.00017211,2]
[346727409,1735249849435,-500.0,0.00017211,2]
[346727410,1735249849445,-500.0,0.00017212,2]
[346727411,1735249849455,-666.73718328,0.00017212,2]
[346727412,1735249849472,-4954.03281672,0.00017212,2]
[346727413,1735249849482,-285.87104804,0.00017212,2]
[346727414,1735249849493,-214.12895196,0.00017212,2]
[346727415,1735249849503,-1968.42,0.00017212,2]
[346727416,1735249849513,-285.41104804,0.00017212,2]
[346727417,1735249850105,-200.8550033,0.0001656,2]
[346727418,1735249850114,-273.36895196,0.00017212,2]
[346727419,1735249850124,-500.0,0.00017212,2]
[346727420,1735249850133,-500.0,0.00017213,2]
[346727421,1735249850142,-1456.39,0.00017213,2]
[346727422,1735249850152,-500.0,0.00017213,2]
[346727423,1735249850161,-500.0,0.00017213,2]
[346727424,1735249850170,-500.0,0.00017214,2]
[346727425,1735249850179,-500.0,0.00017214,2]
[346727426,1735249850188,-500.0,0.00017214,2]
[346727427,1735249850205,-2083.88,0.00017214,2]
[346727428,1735249850219,-500.0,0.00017214,2]
[346727429,1735249850228,-1007.75,0.00017214,2]
[346727430,1735249850237,-500.0,0.00017214,2]
[346727431,1735249850246,-515.35386234,0.00017214,2]
[346727432,1735249850255,-500.0,0.00017214,2]
[346727433,1735249850265,-500.0,0.00017214,2]
[346727434,1735249850274,-500.0,0.00017214,2]
[346727435,1735249850284,-500.0,0.00017214,2]
[346727436,1735249850298,-500.0,0.00017214,2]
[346727437,1735249850309,-500.0,0.00017214,2]
[346727438,1735249850318,-500.0,0.00017214,2]
[346727439,1735249850327,-516.13,0.00017214,2]
[346727440,1735249850337,-500.0,0.00017214,2]
[346727441,1735249850346,-569.39,0.00017214,2]
[346727442,1735249850356,-174.50878935,0.00017232,2]
[346727443,1735249850366,-160.0,0.00017232,2]
[346727444,1735249850375,-254042.49776977,0.00017233,2]
[346727445,1735249850386,-9601.84048092,0.00017233,2]
[346727446,1735249850395,-500.0,0.00017233,2]
[346727447,1735249850405,-500.0,0.00017233,2]
[346727448,1735249850415,-500.0,0.00017233,2]
[346727449,1735249850428,-500.0,0.00017233,2]
[346727450,1735249850437,-276.10193637,0.00017233,2]
[346727451,1735249850447,-460.92762151,0.00017233,2]
[346727452,1735249850457,-500.0,0.00017273,2]
[346727453,1735249850467,-500.0,0.00017273,2]
[346727454,1735249850476,-500.0,0.00017273,2]
[346727455,1735249850485,-500.0,0.00017273,2]
[346727456,1735249850495,-500.0,0.00017273,2]
[346727457,1735249850505,-511.91928225,0.00017273,2]
[346727458,1735249850515,-500.0,0.00017273,2]
[346727459,1735249850525,-500.0,0.00017273,2]
[346727460,1735249850534,-500.0,0.00017273,2]
[346727461,1735249850544,-500.0,0.00017273,2]
[346727462,1735249850553,-500.0,0.00017273,2]
[346727463,1735249850562,-500.0,0.00017273,2]
[346727464,1735249850572,-500.0,0.00017273,2]
[346727465,1735249850581,-500.0,0.00017273,2]
[346727466,1735249850591,-500.0,0.00017273,2]
[346727467,1735249850601,-600.0,0.0001728,2]
[346727468,1735249850611,-500.0,0.00017306,2]
[346727469,1735249850621,-533.08,0.00017306,2]
[346727470,1735249850631,-500.0,0.00017306,2]
[346727471,1735249850641,-188.86473845,0.00017306,2]
[346727472,1735249850651,-500.0,0.00017306,2]
[346727473,1735249850660,-500.0,0.00017306,2]
[346727474,1735249850670,-500.0,0.00017306,2]
[346727475,1735249850679,-500.0,0.00017306,2]
[346727476,1735249850688,-500.0,0.00017306,2]
[346727477,1735249850699,-500.0,0.00017306,2]
[346727478,1735249850708,-500.0,0.00017308,2]
[346727479,1735249850718,-500.0,0.00017308,2]
[346727480,1735249850728,-500.0,0.00017308,2]
[346727481,1735249850737,-500.0,0.0001731,2]
[346727482,1735249850747,-500.0,0.0001731,2]
[346727483,1735249850756,-1732.67,0.0001731,2]
[346727484,1735249850765,-500.0,0.0001731,2]
[346727485,1735249850774,-513.42,0.0001731,2]
[346727486,1735249850782,-13695.59,0.0001731,2]
[346727487,1735249850791,-9731.3,0.00017314,2]
[346727488,1735249850801,-150.0,0.00017353,2]
[346727489,1735249850811,-2113.0,0.00017353,2]
[346727490,1735249850821,-534.0,0.00017353,2]
[346727491,1735249850830,-2355.0,0.00017353,2]
[346727492,1735249850841,-732.55294881,0.00017383,2]
[346727493,1735249850851,-600.0,0.0001746,2]
[346727494,1735249850861,-539.18,0.0001748,2]
[346727495,1735249850872,-500.0,0.0001748,2]
[346727496,1735249850881,-3581.54,0.0001748,2]
[346727497,1735249850891,-661.37,0.0001748,2]
[346727498,1735249850901,-500.0,0.0001748,2]
[346727499,1735249850910,-1426.63,0.0001748,2]
[346727500,1735249850920,-500.0,0.00017481,2]
[346727501,1735249850999,-500.0,0.00017481,2]
[346727502,1735249851009,-500.0,0.00017481,2]
[346727503,1735249851019,-435.24360172,0.00017481,2]
[346727504,1735249851028,-500.0,0.00017481,2]
[346727505,1735249851037,-649.71,0.00017481,2]
[346727506,1735249851046,-500.0,0.00017481,2]
[346727507,1735249851055,-285.34439308,0.00017481,2]
[346727508,1735249851064,-500.0,0.00017481,2]
[346727509,1735249851074,-500.0,0.00017481,2]
[346727510,1735249851083,-13862.09,0.00017481,2]
[346727511,1735249851092,-500.0,0.00017481,2]
[346727512,1735249851102,-500.0,0.00017481,2]
[346727513,1735249851111,-6001.0,0.00017481,2]
[346727514,1735249851120,-500.0,0.00017481,2]
[346727515,1735249851130,-500.0,0.00017481,2]
[346727516,1735249851139,-500.0,0.00017481,2]
[346727517,1735249851148,-500.0,0.00017481,2]
[346727518,1735249851158,-889.71,0.00017482,2]
[346727519,1735249851167,-500.0,0.00017482,2]
[346727520,1735249851177,-500.0,0.00017482,2]
[346727521,1735249851187,-500.0,0.00017482,2]
[346727522,1735249851196,-500.0,0.00017482,2]
[346727523,1735249851205,-500.0,0.00017482,2]
[346727524,1735249851214,-1032.39,0.00017482,2]
[346727525,1735249851224,-500.0,0.00017482,2]
[346727526,1735249851233,-500.0,0.00017482,2]
[346727527,1735249851243,-1271.83,0.00017482,2]
[346727528,1735249851252,-168.0,0.00017482,2]
[346727529,1735249851262,-500.0,0.00017482,2]
[346727530,1735249851272,-1351.38,0.00017482,2]
[346727531,1735249851282,-506.22,0.00017482,2]
[346727532,1735249851291,-691.96,0.00017482,2]
[346727533,1735249851300,-2428.17,0.00017482,2]
[346727534,1735249851310,-500.0,0.00017482,2]
[346727535,1735249851320,-1242.11,0.00017482,2]
[346727536,1735249851329,-500.0,0.00017482,2]
[346727537,1735249851339,-500.0,0.00017482,2]
[346727538,1735249851348,-584.02,0.00017482,2]
[346727539,1735249851358,-1437.84,0.00017482,2]
[346727540,1735249851367,-500.0,0.00017482,2]
[346727541,1735249851377,-500.0,0.00017482,2]
[346727542,1735249851386,-500.0,0.00017482,2]
[346727543,1735249851397,-500.0,0.00017482,2]
[346727544,1735249851407,-620.65,0.00017482,2]
[346727545,1735249851418,-2166.84,0.00017482,2]
[346727546,1735249851433,-3631.34,0.00017482,2]
[346727547,1735249851443,-514.77,0.00017482,2]
[346727548,1735249851454,-500.0,0.00017482,2]
[346727549,1735249851463,-500.0,0.00017482,2]
[346727550,1735249851475,-500.0,0.00017482,2]
[346727551,1735249851484,-500.0,0.00017482,2]
[346727552,1735249851494,-500.0,0.00017482,2]
[346727553,1735249851504,-500.0,0.00017482,2]
[346727554,1735249851514,-2000.37,0.00017482,2]
[346727555,1735249851524,-894.56,0.00017482,2]
[346727556,1735249851533,-2060.01,0.00017482,2]
[346727557,1735249851542,-1311.7,0.00017482,2]
[346727558,1735249851551,-1383.78,0.00017482,2]
[346727559,1735249851560,-1995.74,0.00017482,2]
[346727560,1735249851570,-1699.51,0.00017482,2]
[346727561,1735249851579,-500.0,0.00017482,2]
[346727562,1735249851589,-500.0,0.00017482,2]
[346727563,1735249851599,-500.0,0.00017482,2]
[346727564,1735249851608,-500.0,0.00017482,2]
[346727565,1735249851617,-1075.65,0.00017482,2]
[346727566,1735249851626,-500.0,0.00017482,2]
[346727567,1735249851635,-500.0,0.00017482,2]
[346727568,1735249851645,-500.0,0.00017482,2]
[346727569,1735249851654,-500.0,0.00017483,2]
[346727570,1735249851663,-1124.09,0.00017483,2]
[346727571,1735249851672,-1559.98,0.00017483,2]
[346727572,1735249851682,-500.0,0.00017483,2]
[346727573,1735249851691,-915.83,0.00017483,2]
[346727574,1735249851701,-560.27,0.00017483,2]
[346727575,1735249851710,-500.0,0.00017483,2]
[346727576,1735249851719,-500.0,0.00017483,2]
[346727577,1735249851729,-46428.12,0.00017483,2]
[346727578,1735249851738,-1006.48,0.00017483,2]
[346727579,1735249851749,-500.0,0.00017483,2]
[346727580,1735249851758,-500.0,0.00017484,2]
[346727581,1735249851767,-523.1,0.00017484,2]
[346727582,1735249851777,-390.80797678,0.00017484,2]
[346727583,1735249851787,-500.0,0.00017484,2]
[346727584,1735249851796,-500.0,0.00017484,2]
[346727585,1735249851805,-500.0,0.00017484,2]
[346727586,1735249851815,-483.38939409,0.00017484,2]
[346727587,1735249851824,-500.0,0.00017484,2]
[346727588,1735249851833,-500.0,0.00017484,2]
[346727589,1735249851842,-850.71,0.00017484,2]
[346727590,1735249851852,-500.0,0.00017484,2]
[346727591,1735249851861,-500.0,0.00017484,2]
[346727592,1735249851871,-500.0,0.00017484,2]
[346727593,1735249851880,-500.0,0.00017484,2]
[346727594,1735249851890,-500.0,0.00017484,2]
[346727595,1735249851900,-500.0,0.00017484,2]
[346727596,1735249851910,-500.0,0.00017484,2]
[346727597,1735249851920,-500.0,0.00017484,2]
[346727598,1735249851929,-500.0,0.00017484,2]
[346727599,1735249851938,-500.0,0.00017484,2]
[346727600,1735249851948,-500.0,0.00017484,2]
[346727601,1735249851957,-500.0,0.00017484,2]
[346727602,1735249851968,-500.0,0.00017484,2]
[346727603,1735249851978,-500.0,0.00017484,2]
[346727604,1735249851987,-500.0,0.00017484,2]
[346727605,1735249851996,-500.0,0.00017484,2]
[346727606,1735249852006,-617.9,0.00017484,2]
[346727607,1735249852015,-500.0,0.00017484,2]
[346727608,1735249852024,-500.0,0.00017484,2]
[346727609,1735249852034,-1682.95,0.00017484,2]
[346727610,1735249852043,-500.0,0.00017484,2]
[346727611,1735249852053,-404.35012744,0.00017484,2]
[346727612,1735249852063,-500.0,0.00017484,2]
[346727613,1735249852072,-500.0,0.00017484,2]
[346727614,1735249852082,-1098.15,0.00017484,2]
[346727615,1735249852091,-1692.65,0.00017484,2]
[346727616,1735249852100,-937.86,0.00017484,2]
[346727617,1735249852109,-751.71,0.00017484,2]
[346727618,1735249852118,-500.0,0.00017484,2]
[346727619,1735249852127,-500.0,0.00017484,2]
[346727620,1735249852137,-500.0,0.00017484,2]
[346727621,1735249852146,-500.0,0.00017484,2]
[346727622,1735249852156,-500.0,0.00017484,2]
[346727623,1735249852165,-500.0,0.00017484,2]